bitfinex-derivatives/quotes_BNBF0:USTF0_20250128
["timestamp","ask_amount","ask_price","bid_price","bid_amount"]
[1738023670994,0.24411564,680.41,679.42,0.29436872]
[1738023671200,0.24411564,680.42,679.42,0.29436872]
[1738023671496,0.24411564,680.41,679.42,0.29436872]
[1738023671696,0.24411564,680.4,679.42,0.29436872]
[1738023671897,1.09636371,680.39,679.42,0.29436872]
[1738023672097,0.24412447,680.38,679.42,0.29436872]
[1738023673100,1.09636371,680.39,679.42,0.29436872]
[1738023673607,0.24413224,680.38,679.42,0.29436872]
[1738023673802,1.09636371,680.39,679.42,0.29436872]
[1738023674702,0.29380655,680.72,679.42,0.29436872]
[1738023674703,1.09636371,680.3,679.42,0.29436872]
[1738023677602,1.09636371,680.33,679.42,0.29436872]
[1738023681908,1.09636371,680.29,679.42,0.29436872]
[1738023684211,1.09636371,680.33,679.42,0.29436872]
[1738023686711,1.09636371,680.37,679.42,0.29436872]
[1738023689717,1.09636371,680.42,679.42,0.29436872]
[1738023693217,1.09636371,680.48,679.42,0.29436872]
[1738023695324,1.09636371,680.48,679.43,0.27025184]
[1738023695521,1.09636371,680.48,679.44,0.29436006]
[1738023695722,0.24409004,680.47,679.44,0.29436006]
[1738023696223,1.09636371,680.48,679.44,0.29436006]
[1738023696421,1.34048526,680.47,679.44,0.29436006]
[1738023696617,0.24412155,680.46,679.44,0.29436006]
[1738023698022,1.09636371,680.47,679.44,0.29436006]
[1738023698222,0.24412573,680.46,679.44,0.29436006]
[1738023699627,1.09636371,680.31,679.44,0.29436006]
[1738023701326,0.24412577,680.3,679.44,0.29436006]
[1738023702025,1.09636371,680.31,679.44,0.29436006]
[1738023702526,1.09636371,680.3,679.44,0.29436006]
[1738023705432,1.09636371,680.31,679.44,0.29436006]
[1738023705933,0.24412757,680.3,679.44,0.29436006]
[1738023707533,1.09636371,680.31,679.44,0.29436006]
[1738023708435,1.09636371,680.28,679.44,0.29436006]
[1738023712337,1.09636371,680.3,679.44,0.29436006]
[1738023712637,0.24418845,680.29,679.44,0.29436006]
[1738023712837,1.09636371,680.3,679.44,0.29436006]
[1738023713739,0.24420893,680.29,679.44,0.29436006]
[1738023713939,0.24420893,680.29,679.31,1.08918822]
[1738023715735,1.09636371,680.21,678.91,1.08918822]
[1738023716042,1.09636371,680.21,678.92,0.29458551]
[1738023726047,0.24420893,680.29,678.92,0.29458551]
[1738023732251,1.09636371,680.23,678.92,0.29458551]
[1738023732946,1.09636371,680.23,678.93,0.27039176]
[1738023733245,0.24420893,680.22,678.93,0.27039176]
[1738023733449,0.24420893,680.22,678.94,0.29457684]
[1738023733650,0.24420893,680.22,678.95,0.27039176]
[1738023734246,1.09636371,680.23,678.94,0.29457684]
[1738023734449,0.24418382,680.22,678.95,0.27035938]
[1738023734651,0.24418382,680.22,678.96,0.29456816]
[1738023734844,0.24418382,680.22,678.97,0.27035938]
[1738023735849,0.24418382,680.22,678.98,0.29455948]
[1738023736145,1.09636371,680.23,678.98,0.29455948]
[1738023736351,1.09636371,680.23,678.99,0.27036758]
[1738023736551,1.09636371,680.23,679.0,0.29455081]
[1738023736753,1.09636371,680.23,679.01,0.27036758]
[1738023737050,1.09636371,680.23,679.02,0.56490411]
[1738023737251,1.09636371,680.23,679.03,0.56489977]
[1738023737451,1.09636371,680.23,679.04,0.56489543]
[1738023737646,1.09636371,680.23,679.05,0.5648911]
[1738023737850,1.09636371,680.23,679.06,0.27036198]
[1738023738252,0.24420036,680.22,679.06,0.27036198]
[1738023738447,0.24420036,680.34,679.06,0.27036198]
[1738023738649,0.24420202,680.33,679.06,0.27036198]
[1738023738953,0.24420202,680.32,679.07,0.29452044]
[1738023739252,0.24420202,680.31,679.07,0.29452044]
[1738023739452,0.24420202,680.3,679.07,0.29452044]
[1738023739650,0.24420202,680.29,679.07,0.29452044]
[1738023739847,0.24420202,680.28,679.07,0.29452044]
[1738023740052,0.24420202,680.34,679.07,0.29452044]
[1738023740353,0.24420202,680.33,679.07,0.29452044]
[1738023740652,0.24420202,680.32,679.07,0.29452044]
[1738023740953,0.24420202,680.31,679.07,0.29452044]
[1738023741253,1.09636371,680.35,679.07,0.29452044]
[1738023741254,0.24420202,680.3,679.07,0.29452044]
[1738023741455,0.24420202,680.34,679.07,0.29452044]
[1738023741647,0.24420746,680.33,679.07,0.29452044]
[1738023741853,0.24420746,680.32,679.07,0.29452044]
[1738023742055,0.24420746,680.34,679.07,0.29452044]
[1738023742249,0.24420746,680.33,679.07,0.29452044]
[1738023742448,0.24420746,680.34,679.07,0.29452044]
[1738023744057,1.09636371,680.33,679.07,0.29452044]
[1738023744252,0.24420746,680.32,679.07,0.29452044]
[1738023744856,0.24420746,680.32,679.08,0.27036296]
[1738023745259,0.24420746,680.32,679.09,0.29451177]
[1738023745557,1.09636371,680.33,679.1,0.2703357]
[1738023745760,0.24416031,680.32,679.11,0.29450309]
[1738023745961,0.24416031,680.32,679.12,0.2703357]
[1738023746154,1.09636371,680.33,679.12,0.2703357]
[1738023747156,1.09636371,680.4,679.12,0.2703357]
[1738023747960,1.09636371,680.4,679.14,0.29449009]
[1738023748156,1.09636371,680.4,679.15,0.2703357]
[1738023748860,1.09636371,680.4,679.16,0.29448141]
[1738023749061,1.09636371,680.4,679.17,0.2703357]
[1738023749261,1.09636371,680.4,679.18,0.29447274]
[1738023749457,1.09636371,680.4,679.19,0.2703357]
[1738023749661,1.09636371,680.4,679.2,0.29446407]
[1738023749864,1.09636371,680.4,679.21,0.2703357]
[1738023750263,1.09636371,680.59,679.21,0.2703357]
[1738023750564,0.2441033,680.58,679.22,0.2944554]
[1738023750764,0.2441033,680.58,679.23,0.2703357]
[1738023750964,0.24410294,680.57,679.24,0.27027728]
[1738023751165,0.24410294,680.56,679.25,0.27027728]
[1738023751366,0.24410294,680.58,679.26,0.29443806]
[1738023751560,0.24410294,680.57,679.27,0.27027728]
[1738023751761,0.24410294,680.56,679.27,0.27027728]
[1738023751959,0.24410294,680.58,679.27,0.27027728]
[1738023752264,0.24410294,680.58,679.28,0.29442939]
[1738023752466,0.24410294,680.58,679.29,0.27027728]
[1738023752767,0.24410294,680.58,679.3,0.29442072]
[1738023752968,0.24410294,680.58,679.31,0.27027728]
[1738023753168,0.24410294,680.65,679.31,0.27027728]
[1738023753366,0.24410294,680.65,679.3,0.29442072]
[1738023755671,0.29384109,680.64,679.3,0.29442072]
[1738023755868,0.24410294,680.63,679.3,0.29442072]
[1738023756373,1.39021343,680.62,679.3,0.29442072]
[1738023756572,0.24410294,680.61,679.3,0.29442072]
[1738023756877,0.29385836,680.6,679.3,0.29442072]
[1738023757074,0.24410294,680.59,679.3,0.29442072]
[1738023758175,0.29385836,680.6,679.3,0.29442072]
[1738023758373,0.2441609,680.58,679.3,0.29442072]
[1738023758573,0.2441609,680.57,679.3,0.29442072]
[1738023758773,0.2441609,680.59,679.3,0.29442072]
[1738023758973,0.2441609,680.58,679.3,0.29442072]
[1738023759174,0.2441609,680.59,679.3,0.29442072]
[1738023759375,0.2441609,680.58,679.3,0.29442072]
[1738023759573,0.2441609,680.59,679.3,0.29442072]
[1738023759771,1.09636371,680.51,679.3,0.29442072]
[1738023759970,0.2441609,680.5,679.3,0.29442072]
[1738023760277,0.24417068,680.49,679.3,0.29442072]
[1738023760472,0.24417068,680.48,679.3,0.29442072]
[1738023760775,0.24417068,680.47,679.3,0.29442072]
[1738023760976,0.24417068,680.5,679.3,0.29442072]
[1738023761172,0.24417068,680.49,679.3,0.29442072]
[1738023761369,0.24417068,680.48,679.3,0.29442072]
[1738023761577,0.24417068,680.47,679.3,0.29442072]
[1738023761777,0.24417068,680.5,679.3,0.29442072]
[1738023761976,0.2441675,680.49,679.3,0.29442072]
[1738023762171,0.2441675,680.5,679.3,0.29442072]
[1738023762374,1.09636371,680.44,679.3,0.29442072]
[1738023762574,0.2441675,680.43,679.3,0.29442072]
[1738023765081,0.2441675,680.46,679.3,0.29442072]
[1738023765375,0.2441675,680.45,679.3,0.29442072]
[1738023765575,0.2441675,680.46,679.3,0.29442072]
[1738023765777,0.2441675,680.45,679.3,0.29442072]
[1738023765978,0.2441675,680.44,679.3,0.29442072]
[1738023766179,0.2441675,680.43,679.3,0.29442072]
[1738023766378,0.2441675,680.42,679.3,0.29442072]
[1738023766578,0.2441675,680.41,679.3,0.29442072]
[1738023766778,0.2441675,680.4,679.3,0.29442072]
[1738023767090,0.2441675,680.39,679.3,0.29442072]
[1738023767273,0.2441675,680.38,679.3,0.29442072]
[1738023767480,0.24415694,680.37,679.3,0.29442072]
[1738023767680,0.24415694,680.46,679.3,0.29442072]
[1738023767874,0.24415694,680.45,679.3,0.29442072]
[1738023768075,1.09636371,680.42,679.3,0.29442072]
[1738023768277,0.24415694,680.41,679.3,0.29442072]
[1738023769183,1.09636371,680.42,679.3,0.29442072]
[1738023769478,0.24415959,680.41,679.3,0.29442072]
[1738023771183,1.09636371,680.42,679.3,0.29442072]
[1738023771385,0.24415521,680.41,679.3,0.29442072]
[1738023771685,1.34051892,680.41,679.3,0.29442072]
[1738023771897,0.24415521,680.4,679.3,0.29442072]
[1738023772983,1.09636371,680.41,679.3,0.29442072]
[1738023773183,0.24413474,680.4,679.3,0.29442072]
[1738023774786,0.24413474,680.49,679.3,0.29442072]
[1738023776691,1.09636371,680.5,679.3,0.29442072]
[1738023776891,0.24413461,680.49,679.3,0.29442072]
[1738023777692,1.09636371,680.5,679.3,0.29442072]
[1738023778186,1.09636371,680.45,679.3,0.29442072]
[1738023780893,1.09636371,680.45,679.31,0.27026989]
[1738023781094,1.09636371,680.45,679.32,0.29441205]
[1738023781289,1.39022207,680.6,679.32,0.29441205]
[1738023781490,0.24409596,680.59,679.32,0.29441205]
[1738023783191,1.09636371,680.58,679.32,0.29441205]
[1738023783396,0.24409596,680.57,679.32,0.29441205]
[1738023783590,0.24409764,680.56,679.32,0.29441205]
[1738023783794,0.24409764,680.57,679.32,0.29441205]
[1738023783994,0.24409764,680.56,679.32,0.29441205]
[1738023784194,0.24409764,680.55,679.32,0.29441205]
[1738023784493,1.09636371,680.58,679.32,0.29441205]
[1738023784695,0.24409409,680.57,679.32,0.29441205]
[1738023787096,1.09636371,680.58,679.32,0.29441205]
[1738023787296,0.24411527,680.57,679.32,0.29441205]
[1738023789298,1.09636371,680.53,679.32,0.29441205]
[1738023789496,0.24411527,680.52,679.32,0.29441205]
[1738023790700,1.09636371,680.53,679.32,0.29441205]
[1738023792504,0.29385836,680.6,679.32,0.29441205]
[1738023792505,1.09636371,680.48,679.32,0.29441205]
[1738023795804,0.29385836,680.6,679.32,0.29441205]
[1738023797305,0.24418876,680.59,679.32,0.29441205]
[1738023798405,0.29386699,680.58,679.32,0.29441205]
[1738023798605,0.24418876,680.57,679.32,0.29441205]
[1738023798805,1.09636371,680.56,679.32,0.29441205]
[1738023799006,0.24418935,680.55,679.32,0.29441205]
[1738023800303,0.29388426,680.54,679.32,0.29441205]
[1738023800601,0.24418935,680.53,679.32,0.29441205]
[1738023801508,1.09636371,680.25,679.32,0.29441205]
[1738023801708,0.24418935,680.24,679.32,0.29441205]
[1738023803206,1.09636371,680.25,679.32,0.29441205]
[1738023804111,1.09636371,680.27,679.32,0.29441205]
[1738023807013,1.09636371,680.45,679.32,0.29441205]
[1738023807205,0.24414787,680.44,679.32,0.29441205]
[1738023810014,0.24415282,680.43,679.32,0.29441205]
[1738023810214,0.24415282,680.42,679.32,0.29441205]
[1738023810516,1.09636371,680.47,679.32,0.29441205]
[1738023810711,0.24415045,680.46,679.32,0.29441205]
[1738023811716,1.09636371,680.47,679.32,0.29441205]
[1738023811916,0.24415647,680.46,679.32,0.29441205]
[1738023812516,0.24415647,680.47,679.32,0.29441205]
[1738023812711,0.24415647,680.46,679.32,0.29441205]
[1738023812914,0.24415647,680.47,679.32,0.29441205]
[1738023813113,0.24415647,680.46,679.32,0.29441205]
[1738023813318,0.24415647,680.47,679.32,0.29441205]
[1738023813520,0.24415647,680.46,679.32,0.29441205]
[1738023813814,0.24415647,680.47,679.32,0.29441205]
[1738023814018,0.24415647,680.46,679.32,0.29441205]
[1738023814219,0.24415647,680.47,679.32,0.29441205]
[1738023814418,0.24415647,680.46,679.32,0.29441205]
[1738023814619,0.24415647,680.47,679.32,0.29441205]
[1738023814818,0.24415647,680.46,679.32,0.29441205]
[1738023815013,0.24415647,680.47,679.32,0.29441205]
[1738023815214,0.24415647,680.46,679.32,0.29441205]
[1738023815417,0.24415647,680.47,679.32,0.29441205]
[1738023815617,0.24415647,680.46,679.32,0.29441205]
[1738023815820,0.24415647,680.47,679.32,0.29441205]
[1738023816021,0.29388426,680.54,679.32,0.29441205]
[1738023816022,1.09636371,680.4,679.32,0.29441205]
[1738023816223,0.24415647,680.39,679.32,0.29441205]
[1738023817922,1.09636371,680.26,679.32,0.29441205]
[1738023818114,0.24415647,680.25,679.32,0.29441205]
[1738023818821,1.09636371,680.26,679.32,0.29441205]
[1738023819322,1.09636371,680.26,679.17,1.08918822]
[1738023820723,1.09636371,680.26,678.89,1.08918822]
[1738023820724,2.63195704,680.48,678.75,1.08918822]
[1738023821023,0.24424068,680.47,678.77,0.29465061]
[1738023821923,0.29391881,680.46,678.77,0.29465061]
[1738023822222,0.24424068,680.45,678.77,0.29465061]
[1738023822418,0.29392745,680.44,678.78,0.27041466]
[1738023822617,0.24424068,680.43,678.78,0.27041466]
[1738023822818,0.53817501,680.42,678.8,0.29463759]
[1738023823022,0.53817933,680.41,678.8,0.29463759]
[1738023823222,0.53818365,680.4,678.8,0.29463759]
[1738023823423,0.24423892,680.39,678.8,0.29463759]
[1738023823622,0.29395337,680.38,678.8,0.29463759]
[1738023823827,1.09636371,680.35,678.8,0.29463759]
[1738023824025,0.24423892,680.34,678.8,0.29463759]
[1738023824827,1.09636371,680.35,678.8,0.29463759]
[1738023825024,0.24423856,680.34,678.8,0.29463759]
[1738023826528,1.09636371,680.35,678.8,0.29463759]
[1738023826727,0.24424045,680.34,678.8,0.29463759]
[1738023827428,0.24424045,680.37,678.8,0.29463759]
[1738023827629,0.24424045,680.36,678.8,0.29463759]
[1738023828230,0.24424045,680.36,678.81,1.53614691]
[1738023828534,0.24424077,680.35,678.82,0.29462891]
[1738023828725,0.24424077,680.36,678.82,0.29462891]
[1738023828924,0.24424077,680.35,678.83,0.27041718]
[1738023829125,0.24424077,680.36,678.84,0.29462023]
[1738023829434,1.78029859,680.35,678.85,0.27041854]
[1738023829630,0.24424209,680.34,678.86,0.29461155]
[1738023829832,0.24424209,680.34,678.87,0.27041854]
[1738023830032,0.29397498,680.33,678.86,0.29461155]
[1738023830232,0.24424209,680.32,678.86,0.29461155]
[1738023830528,0.53825416,680.31,678.86,0.29461155]
[1738023830834,0.53825848,680.3,678.86,0.29461155]
[1738023831133,0.29399226,680.29,678.86,0.29461155]
[1738023833839,0.24426343,680.28,678.86,0.29461155]
[1738023834134,0.24426736,680.27,678.86,0.29461155]
[1738023834333,0.24426736,680.26,678.86,0.29461155]
[1738023834538,0.24426736,680.28,678.86,0.29461155]
[1738023834738,0.24426736,680.27,678.86,0.29461155]
[1738023834932,0.24426736,680.28,678.86,0.29461155]
[1738023835135,0.24426736,680.27,678.86,0.29461155]
[1738023835438,0.24426736,680.26,678.86,0.29461155]
[1738023835639,0.24426736,680.25,678.86,0.29461155]
[1738023835933,0.24426736,680.24,678.86,0.29461155]
[1738023836131,0.24426736,680.23,678.86,0.29461155]
[1738023836336,0.24426736,680.22,678.86,0.29461155]
[1738023836537,0.29399226,680.29,678.86,0.29461155]
[1738023836838,0.24426451,680.28,678.86,0.29461155]
[1738023837739,0.24426313,680.27,678.86,0.29461155]
[1738023837938,0.24426313,680.26,678.86,0.29461155]
[1738023838134,0.24426313,680.28,678.86,0.29461155]
[1738023838334,0.24426313,680.27,678.86,0.29461155]
[1738023963939,0.24445633,679.77,678.47,0.2947809]
[1738023964733,0.29422148,679.76,678.47,0.2947809]
[1738023985652,0.29422148,679.76,678.45,1.5371534]
[1738024000260,0.24445633,679.75,678.45,1.5371534]
[1738024000560,0.29423447,679.73,678.45,1.5371534]
[1738024000764,0.24445633,679.72,678.45,1.5371534]
[1738024001064,0.29424746,679.7,678.45,1.5371534]
[1738024001364,0.24445633,679.69,678.45,1.5371534]
[1738024001566,0.29426044,679.67,678.45,1.5371534]
[1738024001861,0.24445633,679.66,678.45,1.5371534]
[1738024002065,0.2942691,679.65,678.45,1.5371534]
[1738024002864,0.24453076,679.64,678.45,1.5371534]
[1738024003163,0.29427776,679.63,678.45,1.5371534]
[1738024004062,0.24453653,679.62,678.45,1.5371534]
[1738024004561,1.53720998,679.81,678.45,1.5371534]
[1738024004562,0.24453653,679.61,678.45,1.5371534]
[1738024004764,0.24453653,679.6,678.45,1.5371534]
[1738024004967,0.24453653,679.8,678.45,1.5371534]
[1738024005164,0.24453653,679.79,678.45,1.5371534]
[1738024005465,0.24453653,679.78,678.45,1.5371534]
[1738024005669,0.24453653,679.8,678.45,1.5371534]
[1738024005969,0.24453653,679.79,678.45,1.5371534]
[1738024006166,0.24453653,679.8,678.45,1.5371534]
[1738024006371,0.24453747,679.79,678.45,1.5371534]
[1738024006567,0.24453747,679.8,678.45,1.5371534]
[1738024006869,0.24452706,679.79,678.45,1.5371534]
[1738024007067,0.24452706,679.8,678.45,1.5371534]
[1738024007270,0.24452706,679.79,678.45,1.5371534]
[1738024007467,0.24452706,679.8,678.45,1.5371534]
[1738024007665,0.24452706,679.79,678.45,1.5371534]
[1738024007966,0.2445402,679.78,678.45,1.5371534]
[1738024008167,0.2445402,679.77,678.45,1.5371534]
[1738024008467,0.2445402,679.76,678.45,1.5371534]
[1738024008767,0.2445402,679.75,678.45,1.5371534]
[1738024008967,0.2445402,679.74,678.45,1.5371534]
[1738024009469,1.53720998,679.81,678.45,1.5371534]
[1738024009866,0.24453274,679.8,678.45,1.5371534]
[1738024012969,1.53720998,679.81,678.45,1.5371534]
[1738024013170,0.2445292,679.8,678.45,1.5371534]
[1738024020276,1.53720998,679.81,678.45,1.5371534]
[1738024020575,0.24454473,679.8,678.45,1.5371534]
[1738024022775,0.24453226,679.79,678.45,1.5371534]
[1738024034487,0.24453226,679.78,678.45,1.5371534]
[1738024034690,1.53720998,679.81,678.45,1.5371534]
[1738024034691,0.24453226,679.77,678.45,1.5371534]
[1738024034888,0.24451819,679.76,678.45,1.5371534]
[1738024035091,0.24451819,679.75,678.45,1.5371534]
[1738024035290,0.24451819,679.8,678.45,1.5371534]
[1738024035487,0.24451819,679.79,678.45,1.5371534]
[1738024035692,0.24451819,679.78,678.45,1.5371534]
[1738024035989,0.24451819,679.8,678.45,1.5371534]
[1738024036192,0.24451819,679.79,678.45,1.5371534]
[1738024036387,0.24451819,679.78,678.45,1.5371534]
[1738024036592,0.24451819,679.77,678.45,1.5371534]
[1738024036891,0.24451819,679.76,678.45,1.5371534]
[1738024037089,0.24451819,679.75,678.45,1.5371534]
[1738024037292,0.24451819,679.8,678.45,1.5371534]
[1738024037493,0.24451819,679.79,678.45,1.5371534]
[1738024037791,1.53720998,679.81,678.45,1.5371534]
[1738024037993,0.24453106,679.8,678.45,1.5371534]
[1738024038693,1.53720998,679.81,678.45,1.5371534]
[1738024038894,0.24446926,679.8,678.45,1.5371534]
[1738024039799,0.24445737,679.79,678.45,1.5371534]
[1738024039998,0.24445737,679.78,678.45,1.5371534]
[1738024040294,0.24445737,679.77,678.45,1.5371534]
[1738024040493,0.24445737,679.8,678.45,1.5371534]
[1738024040796,0.24445737,679.79,678.45,1.5371534]
[1738024040998,0.24445737,679.78,678.45,1.5371534]
[1738024041298,0.24445737,679.77,678.45,1.5371534]
[1738024041497,1.53720998,679.81,678.45,1.5371534]
[1738024041797,0.24445524,679.8,678.45,1.5371534]
[1738024045096,0.24445826,679.79,678.45,1.5371534]
[1738024045300,0.24445826,679.78,678.45,1.5371534]
[1738024045597,0.24445826,679.77,678.45,1.5371534]
[1738024045797,0.24445826,679.76,678.45,1.5371534]
[1738024045996,0.24445826,679.75,678.45,1.5371534]
[1738024046198,0.24445826,679.8,678.45,1.5371534]
[1738024046401,0.24445826,679.79,678.45,1.5371534]
[1738024046599,0.24445826,679.78,678.45,1.5371534]
[1738024046897,0.24445826,679.8,678.45,1.5371534]
[1738024047099,0.24445826,679.79,678.45,1.5371534]
[1738024047298,0.24445826,679.78,678.45,1.5371534]
[1738024047497,0.24445826,679.77,678.45,1.5371534]
[1738024047700,0.24445826,679.76,678.45,1.5371534]
[1738024047898,0.24445826,679.75,678.45,1.5371534]
[1738024048200,0.24445826,679.74,678.45,1.5371534]
[1738024048403,1.53720998,679.81,678.45,1.5371534]
[1738024048701,0.24445765,679.8,678.45,1.5371534]
[1738024049300,1.53720998,679.81,678.45,1.5371534]
[1738024049501,0.24444304,679.8,678.45,1.5371534]
[1738024054809,1.53720998,679.81,678.45,1.5371534]
[1738024055009,0.24441382,679.8,678.45,1.5371534]
[1738024057508,1.53720998,679.81,678.45,1.5371534]
[1738024057808,0.24440295,679.8,678.45,1.5371534]
[1738024059412,0.24435763,679.79,678.45,1.5371534]
[1738024059610,0.24435763,679.8,678.45,1.5371534]
[1738024061309,0.24438186,679.79,678.45,1.5371534]
[1738024061512,0.24438186,679.78,678.45,1.5371534]
[1738024061712,0.24438186,679.77,678.45,1.5371534]
[1738024061911,0.24438186,679.76,678.45,1.5371534]
[1738024062111,0.24438186,679.8,678.45,1.5371534]
[1738024062310,0.24438186,679.79,678.45,1.5371534]
[1738024062613,0.24438186,679.78,678.45,1.5371534]
[1738024062808,0.24438186,679.77,678.45,1.5371534]
[1738024063111,0.24437855,679.76,678.45,1.5371534]
[1738024063312,0.24437855,679.75,678.45,1.5371534]
[1738024063613,0.24437855,679.74,678.45,1.5371534]
[1738024063910,0.24437855,679.73,678.45,1.5371534]
[1738024064114,0.24437855,679.72,678.45,1.5371534]
[1738024064307,0.24437855,679.8,678.45,1.5371534]
[1738024064513,0.24437855,679.79,678.45,1.5371534]
[1738024064810,0.24437855,679.78,678.45,1.5371534]
[1738024065010,0.24437855,679.8,678.45,1.5371534]
[1738024065210,0.24437855,679.79,678.45,1.5371534]
[1738024065513,0.24437855,679.78,678.45,1.5371534]
[1738024065711,0.24437855,679.77,678.45,1.5371534]
[1738024066014,0.24437855,679.76,678.45,1.5371534]
[1738024066214,0.24437855,679.75,678.45,1.5371534]
[1738024066514,0.24437855,679.74,678.45,1.5371534]
[1738024066716,0.24437855,679.73,678.45,1.5371534]
[1738024067010,0.24417943,679.72,678.45,1.5371534]
[1738024067211,0.24417943,679.8,678.45,1.5371534]
[1738024067416,0.24417943,679.79,678.45,1.5371534]
[1738024067613,0.24417943,679.8,678.45,1.5371534]
[1738024067914,0.24417943,679.79,678.45,1.5371534]
[1738024068116,0.24417943,679.78,678.45,1.5371534]
[1738024068316,0.24417943,679.77,678.45,1.5371534]
[1738024068513,0.24417943,679.76,678.45,1.5371534]
[1738024068717,1.53720998,679.81,678.45,1.5371534]
[1738024068917,0.24410817,679.8,678.45,1.5371534]
[1738024073018,1.53720998,679.81,678.45,1.5371534]
[1738024073219,0.24399702,679.8,678.45,1.5371534]
[1738024077324,0.24400711,679.79,678.45,1.5371534]
[1738024077624,0.24400711,679.8,678.45,1.5371534]
[1738024079427,0.24394833,679.79,678.45,1.5371534]
[1738024079626,0.24394833,679.78,678.45,1.5371534]
[1738024079828,0.24394833,679.8,678.45,1.5371534]
[1738024080026,0.24394833,679.79,678.45,1.5371534]
[1738024080224,0.24394833,679.8,678.45,1.5371534]
[1738024081030,1.53720998,679.81,678.45,1.5371534]
[1738024081231,0.24395525,679.8,678.45,1.5371534]
[1738024083027,0.24395104,679.79,678.45,1.5371534]
[1738024083230,0.24395104,679.8,678.45,1.5371534]
[1738024083428,0.24395104,679.79,678.45,1.5371534]
[1738024083632,0.24395104,679.8,678.45,1.5371534]
[1738024083931,0.24395104,679.79,678.45,1.5371534]
[1738024084129,0.24395104,679.8,678.45,1.5371534]
[1738024084431,0.24395104,679.79,678.45,1.5371534]
[1738024084629,0.24395104,679.8,678.45,1.5371534]
[1738024084828,0.24395104,679.79,678.45,1.5371534]
[1738024085127,0.2439338,679.78,678.45,1.5371534]
[1738024085331,0.24393567,679.77,678.45,1.5371534]
[1738024085532,0.24393567,679.76,678.45,1.5371534]
[1738024085834,0.24393567,679.75,678.45,1.5371534]
[1738024086032,0.24393567,679.74,678.45,1.5371534]
[1738024086230,0.24393567,679.73,678.45,1.5371534]
[1738024086431,1.53720998,679.81,678.45,1.5371534]
[1738024086432,0.24393567,679.8,678.45,1.5371534]
[1738024086632,0.24393567,679.79,678.45,1.5371534]
[1738024086934,0.24393567,679.78,678.45,1.5371534]
[1738024087134,0.24393567,679.77,678.45,1.5371534]
[1738024087334,0.24393567,679.8,678.45,1.5371534]
[1738024087531,0.24393567,679.79,678.45,1.5371534]
[1738024087734,0.24393567,679.78,678.45,1.5371534]
[1738024087932,0.24393567,679.77,678.45,1.5371534]
[1738024088131,0.24393567,679.76,678.45,1.5371534]
[1738024088338,0.24393567,679.75,678.45,1.5371534]
[1738024088635,0.24393567,679.74,678.45,1.5371534]
[1738024088932,0.24393567,679.73,678.45,1.5371534]
[1738024089131,0.2439255,679.72,678.45,1.5371534]
[1738024089332,0.2439255,679.71,678.45,1.5371534]
[1738024089536,0.2439255,679.7,678.45,1.5371534]
[1738024089837,0.2439255,679.8,678.45,1.5371534]
[1738024090036,0.2439255,679.79,678.45,1.5371534]
[1738024090237,0.2439255,679.8,678.45,1.5371534]
[1738024090634,0.24384996,679.79,678.45,1.5371534]
[1738024090838,0.24384996,679.8,678.45,1.5371534]
[1738024091036,0.24384996,679.79,678.45,1.5371534]
[1738024091239,0.24384996,679.78,678.45,1.5371534]
[1738024091433,0.24384996,679.77,678.45,1.5371534]
[1738024091635,0.24384996,679.76,678.45,1.5371534]
[1738024091937,0.24384996,679.75,678.45,1.5371534]
[1738024092138,0.24384996,679.8,678.45,1.5371534]
[1738024093240,0.2438604,679.79,678.45,1.5371534]
[1738024093536,0.2438604,679.8,678.45,1.5371534]
[1738024093738,0.2438604,679.79,678.45,1.5371534]
[1738024093936,0.2438604,679.78,678.45,1.5371534]
[1738024094139,0.2438604,679.77,678.45,1.5371534]
[1738024094339,0.2438604,679.76,678.45,1.5371534]
[1738024094535,1.53720998,679.81,678.45,1.5371534]
[1738024094536,0.2438604,679.75,678.45,1.5371534]
[1738024094738,0.2438604,679.8,678.45,1.5371534]
[1738024095041,0.2438604,679.79,678.45,1.5371534]
[1738024095240,0.2438604,679.8,678.45,1.5371534]
[1738024095439,0.2438604,679.79,678.45,1.5371534]
[1738024095738,0.2438604,679.78,678.45,1.5371534]
[1738024095939,0.2438604,679.8,678.45,1.5371534]
[1738024098245,1.53720998,679.81,678.45,1.5371534]
[1738024100147,0.24400544,679.8,678.45,1.5371534]
[1738024101749,1.53720998,679.81,678.45,1.5371534]
[1738024101946,0.24401142,679.8,678.45,1.5371534]
[1738024102444,1.53720998,679.81,678.45,1.5371534]
[1738024102445,0.24401656,679.79,678.45,1.5371534]
[1738024102648,0.24401656,679.8,678.45,1.5371534]
[1738024102846,0.24401656,679.79,678.45,1.5371534]
[1738024103050,0.24401656,679.8,678.45,1.5371534]
[1738024104246,1.53720998,679.81,678.45,1.5371534]
[1738024104447,0.24402776,679.8,678.45,1.5371534]
[1738024107854,1.53720998,679.81,678.45,1.5371534]
[1738024108152,0.24404034,679.8,678.45,1.5371534]
[1738024113659,0.24405671,679.79,678.45,1.5371534]
[1738024113856,0.24405671,679.8,678.45,1.5371534]
[1738024114059,0.24405671,679.79,678.45,1.5371534]
[1738024114257,0.24405671,679.8,678.45,1.5371534]
[1738024114458,0.24405712,679.79,678.45,1.5371534]
[1738024114658,0.24405712,679.78,678.45,1.5371534]
[1738024114956,0.24405712,679.77,678.45,1.5371534]